Cogmind - Beta 14 @@@ ROGUE MODE // 2024.09.23 @ 02:33:00 Player: morimori Result: Destroyed by as-35665 with Assembled Blade Performance ------------- Evolutions (0) 0 Regions Visited (2) 400 Robots Destroyed (32) 160 Value Destroyed (449) 449 Prototype IDs (2) 40 Alien Tech Used (0) 0 Bonus (0) 0 TOTAL SCORE: 1049 Bonus ------- None Cogmind --------- Core Integrity 0/250 Matter 270/300 Energy 250/250 System Corruption 2% Temperature Cool (21) Movement Rolling (105) Ox1 Location -10/Mines Parts ------- > --- POWER (1) -------- Ion Engine > --- PROPULSION (2) --- Wheel Compact Wheel > --- UTILITY (2) ------ Large Storage Unit > --- WEAPON (2) ------- Light Assault Rifle Light Cannon > --- INVENTORY (15) --- Ion Engine Ion Engine Aluminum Leg Wheel Wheel Hover Unit Hover Unit Combat Airjet Structural Scanner Improved Terrain Scanner Seismic Detector Medium Laser Beam Cannon Beam Cannon Light Assault Rifle Peak State ------------ > --- POWER ------------ Light Ion Engine > --- PROPULSION ------- Wheel Compact Wheel > --- UTILITY ---------- Heat Sink Large Storage Unit > --- WEAPON ----------- Light Assault Rifle Light Cannon > --- INVENTORY -------- Ion Engine Ion Engine Aluminum Leg Wheel Wheel Hover Unit Hover Unit Combat Airjet Structural Scanner Improved Terrain Scanner Seismic Detector Medium Laser Beam Cannon Light Assault Rifle [Rating: 9] Favorites ----------- Power Ion Engine Engine Ion Engine Propulsion Wheel Leg Aluminum Leg Wheel Wheel Utility Small Storage Unit Device Heat Sink Storage Small Storage Unit Protection Light Armor Plating Weapon Light Cannon Energy Gun Medium Laser Ballistic Gun Light Assault Rifle Ballistic Cannon Light Cannon Build | -11 -10 -10 ------- Run | Yrd Mat Min Slots Evolved . | . . . Power . | . . . Propulsion . | . . . Utility . | . . . Weapon . | . . . Parts Attached 32 | 9 18 5 Power 5 | 1 2 2 Engine 5 | 1 2 2 Core . | . . . Reactor . | . . . Propulsion 9 | 3 5 1 Treads . | . . . Leg 1 | 1 . . Wheel 8 | 2 5 1 Hover . | . . . Flight . | . . . Utility 10 | 2 8 . Device 4 | 1 3 . Storage 2 | 1 1 . Processor . | . . . Hackware . | . . . Protection 4 | . 4 . Artifact . | . . . Weapon 8 | 3 3 2 Energy Gun 3 | 3 . . Energy Cannon . | . . . Ballistic Gun 2 | . 1 1 Ballistic Cannon 3 | . 2 1 Launcher . | . . . Special Weapon . | . . . Impact Weapon . | . . . Slashing Weapon . | . . . Piercing Weapon . | . . . Special Melee Weapon . | . . . Unidentified Prototypes . | . . . Parts Lost 6 | . 1 5 Power 1 | . . 1 Propulsion 1 | . . 1 Utility 2 | . 1 1 Weapon 2 | . . 2 Highest Loss Streak 4 | . 1 4 To Critical Strikes . | . . . Average Slot Usage (%) 98 | . 99 97 Engine 13 | . 13 13 Wheel 27 | . 28 26 Device 9 | . 7 13 Storage 14 | . 14 14 Protection 4 | . 5 . Energy Gun 3 | . 5 . Ballistic Gun 4 | . 3 8 Ballistic Cannon 19 | . 19 19 Peak Build Rating 9 | 8 8 9 Average Rating 7 | 6 7 8 On Entrance 5 | . 8 8 Naked Turns . | . . . Heaviest Build 32 | 15 32 32 Greatest Support 32 | 20 32 32 Greatest Overweight (x) 3 | 3 1 1 Average Overweight (x) . | . . . Largest Inventory Capacity 15 | 8 15 15 Average Capacity 10 | 7 9 15 Most Carried 15 | 8 15 15 Average Carried 9 | 5 8 14 Final Capacity 15 | 8 15 15 Final Carried 15 | 8 15 15 Class Distribution -------------------- 93% | Mutant 6% | Commander-Mutant Dominant Class ---------------- Mutant | -10/Materials Mutant | -10/Mines Resources | -11 -10 -10 ----------- Run | Yrd Mat Min Matter Collected 725 | 290 349 86 Remotely . | . . . Salvage Created 761 | 234 476 51 Parts 61 | 20 38 3 Haulers Intercepted 2 | . 2 . Recyclers Shooed . | . . . Parts Field Recycled . | . . . Retrieved Matter . | . . . Parts Self-Destructed . | . . . Prevented . | . . . Kills | -11 -10 -10 ------- Run | Yrd Mat Min Combat Hostiles Destroyed 18 | . 12 6 Guns 9 | . 6 3 Cannons 9 | . 6 3 Classes Destroyed 9 | 3 4 2 Worker 2 | 2 . . Tunneler 6 | 6 . . Hauler 2 | . 2 . Recycler 2 | 1 1 . Watcher 3 | . 3 . Swarmer 12 | . 9 3 Grunt 3 | . 3 . Demolisher 2 | . . 2 Assembled 1 | . . 1 Best Kill Streak 3 | 3 3 3 Combat Bots Only 3 | . 3 3 Max Kills in Single Turn 1 | 1 1 1 Gunslinging . | . . . Exploded . | . . . Melee . | . . . Uniques/NPCs Destroyed . | . . . Combat | -11 -10 -10 -------- Run | Yrd Mat Min Hostile Shots Fired 92 | . 58 34 Missed 16 | . 9 7 Damage Taken 1185 | . 498 687 Core 267 | . 50 217 Absorbed by Shields . | . . . Regen/Repaired (Parts) 38 | . 38 . Core Remaining (%) 100 | 100 . . Volleys Fired 103 | 41 46 16 Largest 2 | 1 2 2 Hottest 90 | 50 90 70 Shots Fired 156 | 41 83 32 Gun 101 | 41 47 13 Cannon 55 | . 36 19 Launcher . | . . . Special . | . . . Kinetic 93 | . 61 32 Thermal 60 | 41 19 . Explosive . | . . . Electromagnetic 3 | . 3 . Robot Hit Streak 9 | 9 6 8 Robot Miss Streak 4 | 3 3 4 Penetration Max . | . . . Secondary Targets . | . . . Shots Hit Robots 93 | 27 48 18 Core Hits 44 | 10 24 10 Critical Kills . | . . . Critical Parts Destroyed . | . . . Critical Strikes 5 | 2 2 1 Burn 4 | 2 2 . Blast 1 | . . 1 Melee Attacks . | . . . Impact . | . . . Slashing . | . . . Piercing . | . . . Sneak Attacks . | . . . Combat Hostiles . | . . . Follow-up Attacks . | . . . Damage Inflicted 1213 | 342 602 269 Guns 727 | 342 316 69 Cannons 486 | . 286 200 Explosions . | . . . Melee . | . . . Ramming . | . . . Kinetic 695 | . 426 269 Thermal 495 | 342 153 . Explosive . | . . . Electromagnetic 23 | . 23 . Impact . | . . . Slashing . | . . . Piercing . | . . . Highest Corruption 2 | . . 2 Average Corruption 2 | . . 2 Corruption Purged . | . . . Corruption Blocked . | . . . Overload Shots . | . . . Overflow Damage 6 | . . 6 Projectiles 6 | . . 6 Explosions . | . . . Melee . | . . . Knockbacks 10 | . 4 6 Impact . | . . . Kinetic 9 | . 3 6 Secondary 1 | . 1 . Self-Inflicted Damage . | . . . Shots . | . . . Rammed . | . . . Targets Rammed . | . . . Kicked . | . . . Crushed . | . . . Highest Temperature 202 | 140 202 21 Average Temperature 61 | 40 76 12 Received Heat Transfer 129 | . 129 . Siege Activations . | . . . Robots Corrupted . | . . . Combat Hostiles . | . . . Parts Fried . | . . . Impact Corruptions . | . . . Robots Melted . | . . . Combat Hostiles . | . . . Parts Melted 6 | 4 2 . Heat Transferred 1739 | 1147 592 . Parts Sabotaged . | . . . Parts Stolen . | . . . Parts Stripped . | . . . Power Chain Reactions . | . . . Alert | -11 -10 -10 ------- Run | Yrd Mat Min Peak Influence 207 | 45 207 100 Initial 29 | . 29 . Average 52 | 22 67 29 Maximum Alert Level 1 | . 1 . Low Security (%) 93 | 100 89 100 Level 1 6 | . 10 . Level 2 . | . . . Level 3 . | . . . Level 4 . | . . . Level 5 . | . . . High Security . | . . . Max Security . | . . . Squads Dispatched . | . . . Investigation . | . . . Extermination . | . . . Reinforcement . | . . . Assault . | . . . Garrison . | . . . Intercept . | . . . Searches Triggered . | . . . Construction Impeded . | . . . Haulers Reinforced . | . . . Active Scanning Responses . | . . . Cargo Convoy Interrupts . | . . . Stealth | -11 -10 -10 --------- Run | Yrd Mat Min Distress Signals . | . . . Communications Jammed . | . . . Distress Signals . | . . . Times Spotted 25 | . 17 8 Peak Tracking Total 4 | . 3 4 Tactical Retreats 2 | . 1 1 Traps | -11 -10 -10 ------- Run | Yrd Mat Min Traps Triggered . | . . . Indirectly . | . . . Trap Hack Attempts . | . . . Triggered . | . . . Disarmed . | . . . Reprogrammed . | . . . Reused . | . . . Traps Extracted . | . . . Installed . | . . . Triggered . | . . . Machines | -11 -10 -10 ---------- Run | Yrd Mat Min Machines Disabled . | . . . Max in Single Turn . | . . . Machines Repaired . | . . . Machines Dismantled . | . . . Machines Sabotaged . | . . . Overloaded Fab Kills . | . . . Hacking | -11 -10 -10 --------- Run | Yrd Mat Min Machines Accessed 8 | . 8 . Terminals 5 | . 5 . Fabricators . | . . . Repair Stations 1 | . 1 . Recycling Units 2 | . 2 . Scanalyzers . | . . . Garrison Access . | . . . Total Hacks 21 | . 21 . Successful 12 | . 12 . Failed 8 | . 8 . Catastrophic . | . . . Database Lockouts 1 | . 1 . Manual 12 | . 12 . Terminals 13 | . 13 . Fabricators . | . . . Repair Stations 4 | . 4 . Recycling Units 4 | . 4 . Scanalyzers . | . . . Garrison Access . | . . . Terminal Hacks 4 | . 4 . Robot Analysis 1 | . 1 . Prototype ID Bank 1 | . 1 . Terminal Index 1 | . 1 . Unreport Threat 1 | . 1 . Fabricator Hacks . | . . . Repair Station Hacks 3 | . 3 . Scan Component 2 | . 2 . Repair 1 | . 1 . Recycling Unit Hacks 1 | . 1 . Retrieve Components 1 | . 1 . Scanalyzer . | . . . Garrison Access Hacks . | . . . Unauthorized Hacks 4 | . 4 . Terminals 4 | . 4 . Assimilate 2 | . 2 . Botnet 1 | . 1 . Operators 1 | . 1 . Fabricators . | . . . Repair Stations . | . . . Recycling Units . | . . . Scanalyzers . | . . . Garrison Access . | . . . Data Cores Recovered . | . . . Used . | . . . Hacking Detections 6 | . 6 . Full Trace Events . | . . . Feedback Events . | . . . Feedback Blocked . | . . . Robot Schematics Acquired . | . . . Robots Built . | . . . Authchips . | . . . Time . | . . . Total Robot Build Rating . | . . . Part Schematics Acquired . | . . . Parts Built . | . . . Authchips . | . . . Time . | . . . Total Part Build Rating . | . . . Parts Repaired 1 | . 1 . Time 36 | . 36 . Parts Recycled . | . . . Recycled Matter . | . . . Retrieved Matter . | . . . Retrieved Components 4 | . 4 . Parts Scanalyzed . | . . . Part Schematics Acquired . | . . . Parts Damaged . | . . . Bothacking | -11 -10 -10 ------------ Run | Yrd Mat Min Used RIF Installer . | . . . Robots Hacked . | . . . Non-combat . | . . . Combat . | . . . Robot Hacks Applied . | . . . Relay Couplers Released . | . . . Fabnet Peak Effective % . | . . . Robots Rewired . | . . . Allies Hacked . | . . . Hacks Repelled . | . . . Allies | -11 -10 -10 -------- Run | Yrd Mat Min Total Allies 4 | . 1 3 Largest Group 4 | . 1 4 Highest-Rated Group 50 | . 10 50 Highest-Rated Ally 16 | . 10 16 Total Orders . | . . . Ally Attacks . | . . . Total Damage . | . . . Kills . | . . . Allies Corrupted . | . . . Allies Melted . | . . . Intel | -11 -10 -10 ------- Run | Yrd Mat Min Robot Analysis Total 1 | . 1 . Derelict Logs Recovered 2 | . . 2 Drone Launches . | . . . Drone Recoveries . | . . . Exploration | -11 -10 -10 ------------- Run | Yrd Mat Min Turns Passed 2268 | 264 1456 548 Spaces Moved 1664 | 169 1061 434 Core 5 | 5 . . Treads . | . . . Legs 1 | 1 . . Wheels 1658 | 163 1061 434 Hover . | . . . Flight . | . . . Fastest Speed 50 | 50 80 100 Average Speed 91 | 82 87 103 Slowest Speed 200 | 200 105 115 Overloaded Moves . | . . . Propulsion Burnouts . | . . . Robots Hopped . | . . . Cave-ins Triggered . | . . . Exploration Rate (%) 47 | 6 96 40 Regions Visited 2 Branch Regions 1 Pre-discovered Areas 1 | . . 1 Known Exits Taken . | . . . Unknown Exits Taken 2 | 1 1 . Scrap Searched 1 | . . 1 Spaces Dug . | . . . Terrain Destroyed 1 | . . 1 Melee . | . . . Projectile 1 | . . 1 AOE . | . . . Terrain Rammed . | . . . Walls Destroyed . | . . . Machines Disabled . | . . . Actions | -11 -10 -10 --------- Run | Yrd Mat Min Total 2268 | 251 1512 505 Wait 422 | 21 356 45 Move 1662 | 168 1060 434 Hop . | . . . Pick Up 27 | 9 14 4 Fast Attach 15 | 8 6 1 Attach 3 | . . 3 Detach 1 | 1 . . Swap 14 | 1 12 1 Drop 21 | 2 18 1 Fire 103 | 41 46 16 Melee . | . . . Ram . | . . . Kick . | . . . Crush . | . . . Escape Stasis . | . . . Rewire . | . . . Trap . | . . . Miscellaneous . | . . . Route ------- -11/Scrapyard -10/Materials (discovered 4 exits: [*Mat x3] / [*Min]) -10/Mines (discovered 1 exit: [*Mat]) History --------- Turn | Location | Event 13 | -11/Scrapyard | Discovered new exit (range 16) 265 | -11/Scrapyard | Entered Materials 314 | -10/Materials | Build established: Mutant 388 | -10/Materials | Central database locked down 409 | -10/Materials | Discovered new exit (range 13) 872 | -10/Materials | Discovered new exit (range 14) 1161 | -10/Materials | Discovered new exit (range 16) 1347 | -10/Materials | Discovered new exit (range 11) 1404 | -10/Materials | Repaired Broken Ion Engine 1721 | -10/Materials | Entered Mines 1721 | -10/Mines | Accompanied by 1 ally 1761 | -10/Mines | Discovered new exit (range 6) 1765 | -10/Mines | Assisted by bots powering up and referring to "LRC-V3" 1859 | -10/Mines | Learned Materials stockpile data 1886 | -10/Mines | Assembled infested the area 1886 | -10/Mines | Learned location of Zion (-6) 1925 | -10/Mines | Core integrity fell below 50% 1941 | -10/Mines | Lost 4 allies 1959 | -10/Mines | Lost 4 parts (1p1n2w) 2267 | -10/Mines | Core integrity fell below 20% 2269 | -10/Mines | Destroyed by as-35665 with Assembled Blade Last Messages --------------- 02205_ K-01 Serf collects debris. 02246_ R-06 Scavenger destroyed. 02248_ U-05 Engineer builds a Wall. 02249_ K-01 Serf collects debris. 02252_ U-05 Engineer builds a Wall. 02252_ K-01 Serf collects debris. 02253_ as-86498 sneak attacks. 02253_ U-05 Engineer system corrupted by crushing effect. 02253_ U-05 Engineer destroyed. 02254_ as-86498 knocked back. 02255_ K-01 Serf collects debris. 02257_ as-35665 sneak attacks. 02257_ K-01 Serf destroyed. 02259_ K-01 Serf collects debris. 02259_ Heat Sink destroyed. 02259_ System corrupted by crushing effect (+2). 02260_ as-86498 destroyed. 02262_ K-01 Serf collects debris. 02263_ as-35665 knocked back. 02266_ K-01 Serf collects debris. Map ----- +----------------------------------------------------+ | ?## ##???????????????####### #? | | ?# ####????????????# #? | | ?# ##???????????# ##### ##? | | ?# ##########??# #???## < #?? | | ?### #### #??# #????## ##?? | | #??## ##??########## #??# #?????# ##??? | | #???# ##???????????# #??# #?????# #???? | | ##??## ##??????????# ####*#?????# #???? | | ###### ######?????# ## #?????# #???? | | #### ##????# ##%#?????# #???? | | #?## """ #????### ##%#?????# #???? | | ##?## """ ##?????# = #?????# #???? | | #### """ #?????# ####?????# #???? | | #?????# ########## #???? | | #????## #???? | | ###### ##???## %############???? | | # #????## ##????# % %#??????????????? | | ## #??????###?????# #??????????????? | | ## ##?????????????# ##?????????????? | | # #????????????## %% #?????????????? | | ###########?## % % #?????????????? | | % ###%k #?????????????? | | # ## % ##?????????????? | | ### ###### %# % ##??????????????? | | ??### #????# =a##??????????????? | | ????## ##???# @##?????????????? | | ?????####???# ** ## ##%!%!#?????????????? | | ????????????# !%### ## ##????????????? | | ????????????## ##?# ####???????????? | | ?????????????# ##??## #%|## #???????????? | | ?????????????# ????# #=%# #???????????? | | ?????????????# ????####!!## #???????????? | | ?????????????# ????# # %## #???????????? | | ????????????? ????# # # #??????????? | | ?????????????##????## ##??????????? | | ????????????????????## #???????????? | | ???????????????####### ##???????????? | | ???????????????# ###????????????? | | ???????????????# #####?????????? | | ???????????????# ##### ##????????? | | ???????????????# ?????# ##???????? | | ?????????????????????## #???????? | | ??????????????????#### #???????? | | ??????????????????# #### ##???????? | | ??????????????????# ### #??#####????????? | | ??????????????????#???# #???????????????? | | ??????????????????#???# #???????????????? | | ??????????????????# ### #???????????????? | | ??????????????????# #???????????????? | | ??????????????????# #???????????????? | +----------------------------------------------------+ Best States ------------- Heat Dissipation 35 Energy Generation 10 Energy Capacity 250 Matter Stores 300 Matter Capacity 300 Sight Range 16 Terrain Scan Density 10 Armor Coverage 150 Evasion (%) 44 Item Schematics ----------------- None Robot Schematics ------------------ None Fabricated ------------ Nothing Alien Tech Used ----------------- None Achievements -------------- None Challenges ------------ None Game ------ Seed DroneOpticalCoupler Manual? 0 Play Time 00:18:53 Cumulative 237.1 hours Start 2024.09.23 @ 00:22:57 End 2024.09.23 @ 02:33:00 Sessions 1 Manual Loads 0 Difficulty Rogue Special Mode None Game No. 129 Rogue 129 Adventurer 0 Explorer 0 Win Type - Total 4 Types 4/0/0/0/0/0/0/0/0 Lore% 40 Gallery% 62 Achievement% 55 Wizard Run 0 Options --------- Layout 0 ASCII 0 Keyboard 1 Movement Vi Keybinds 0 Fullscreen 2 Font 18/SmallcapsGlow Map View 76x50 Zoom Use 0% Tactical HUD 1 Map Filters NONE Filters NONE Steam 1 RUN: eaea6563-886d-4fcc-8d06-b76df75e01a9